bitfinex-derivatives/quotes_BNBF0:USTF0_20230901
["timestamp","ask_amount","ask_price","bid_price","bid_amount"]
[1693585942263,0.17166846,214.35,213.94,0.07567386]
[1693585944770,0.17166846,214.35,213.93,0.07567386]
[1693585944970,5.07415362,214.34,213.93,0.07567386]
[1693585945270,0.17166846,214.33,213.93,0.07567386]
[1693585945871,0.17166846,214.33,213.92,0.07567386]
[1693585950377,0.17166846,214.33,213.93,0.07567386]
[1693585954380,0.17166846,214.33,213.94,0.07567386]
[1693585954576,0.17166846,214.32,213.94,0.07567386]
[1693585954772,0.17166846,214.31,213.94,0.07567386]
[1693585954977,0.17166846,214.34,213.94,0.07567386]
[1693585955279,0.17166846,214.33,213.94,0.07567386]
[1693585955480,0.17166846,214.34,213.94,0.07567386]
[1693585955676,0.17166846,214.33,213.94,0.07567386]
[1693585955882,0.17166846,214.32,213.93,0.07567386]
[1693585956076,5.07415362,214.35,213.93,0.07567386]
[1693585956077,0.17166846,214.34,213.93,0.07567386]
[1693585956279,0.17166846,214.33,213.93,0.07567386]
[1693585956474,0.17166846,214.32,213.93,0.07567386]
[1693585956676,0.17166846,214.31,213.93,0.07567386]
[1693585956880,0.17166846,214.3,213.93,0.07567386]
[1693585957079,0.17166846,214.29,213.93,0.07567386]
[1693585957279,0.17166846,214.28,213.93,0.07567386]
[1693585957482,0.17166846,214.34,213.93,0.07567386]
[1693585957784,0.17166846,214.33,213.93,0.07567386]
[1693585957982,0.17166846,214.34,213.93,0.07567386]
[1693585958175,5.07415362,214.35,213.93,0.07567386]
[1693585958176,0.17166846,214.33,213.93,0.07567386]
[1693585958380,0.17166846,214.32,213.93,0.07567386]
[1693585958677,0.17166846,214.31,213.93,0.07567386]
[1693585958884,0.17166846,214.3,213.93,0.07567386]
[1693585959079,0.17166846,214.34,213.93,0.07567386]
[1693585959381,0.17166846,214.33,213.93,0.07567386]
[1693585959582,0.17166846,214.32,213.93,0.07567386]
[1693585959783,0.17166846,214.34,213.93,0.07567386]
[1693585960685,0.17166846,214.34,213.94,0.07567386]
[1693585962379,0.17166846,214.34,213.95,0.07567386]
[1693585962584,0.17166846,214.35,213.95,0.07567386]
[1693585962785,0.17166846,214.34,213.95,0.07567386]
[1693585962985,0.17166846,214.33,213.95,0.07567386]
[1693585963186,0.17166846,214.35,213.95,0.07567386]
[1693585963383,0.17166846,214.34,213.95,0.07567386]
[1693585963586,0.17166846,214.33,213.94,0.07567386]
[1693585963785,0.17166846,214.35,213.94,0.07567386]
[1693585963983,0.17166846,214.34,213.94,0.07567386]
[1693585964385,0.17166846,214.34,213.95,0.07567386]
[1693585965187,0.17166846,214.34,213.88,0.15134773]
[1693585965188,0.17166846,214.34,213.94,0.07567386]
[1693585967789,5.24582208,214.34,213.94,0.07567386]
[1693585967985,0.17166846,214.33,213.94,0.07567386]
[1693585970092,0.17166846,214.32,213.94,0.07567386]
[1693585970292,0.17166846,214.34,213.94,0.07567386]
[1693585970492,0.17166846,214.33,213.94,0.07567386]
[1693585970693,0.17166846,214.32,213.94,0.07567386]
[1693585970888,0.17166846,214.34,213.94,0.07567386]
[1693585971087,0.17166846,214.33,213.94,0.07567386]
[1693585971394,0.17166846,214.32,213.95,0.07567386]
[1693585971588,0.17166846,214.34,213.95,0.07567386]
[1693585971791,0.17166846,214.33,213.95,0.07567386]
[1693585971987,0.17166846,214.32,213.95,0.07567386]
[1693585972186,0.17166846,214.34,213.95,0.07567386]
[1693585972393,0.17166846,214.33,213.94,0.07567386]
[1693585972595,0.17166846,214.32,213.94,0.07567386]
[1693585972793,0.17166846,214.34,213.95,0.07567386]
[1693585973094,0.17166846,214.33,213.95,0.07567386]
[1693585973293,0.17166846,214.32,213.95,0.07567386]
[1693585973488,0.17166846,214.35,213.95,0.07567386]
[1693585973688,0.17166846,214.34,213.95,0.07567386]
[1693585973993,0.17166846,214.33,213.95,0.07567386]
[1693585974195,0.17166846,214.35,213.95,0.07567386]
[1693585974390,0.17166846,214.34,213.95,0.07567386]
[1693585974594,0.17166846,214.35,213.95,0.07567386]
[1693585974789,0.17166846,214.34,213.95,0.07567386]
[1693585974991,0.17166846,214.35,213.95,0.07567386]
[1693585975193,0.17166846,214.34,213.95,0.07567386]
[1693585975392,0.17166846,214.33,213.95,0.07567386]
[1693585975596,5.07415362,214.36,213.95,0.07567386]
[1693585975597,0.17166846,214.35,213.95,0.07567386]
[1693585975797,0.17166846,214.34,213.95,0.07567386]
[1693585975995,5.07415362,214.36,213.95,0.07567386]
[1693585975996,0.17166846,214.33,213.95,0.07567386]
[1693585976192,0.17166846,214.35,213.95,0.07567386]
[1693585976390,0.17166846,214.34,213.95,0.07567386]
[1693585976592,0.17166846,214.33,213.95,0.07567386]
[1693585976791,0.17166846,214.36,213.95,0.07567386]
[1693585976990,0.17166846,214.35,213.95,0.07567386]
[1693585977298,0.17166846,214.34,213.95,0.07567386]
[1693585977598,0.17166846,214.33,213.94,0.07567386]
[1693585977798,0.17166846,214.32,213.94,0.07567386]
[1693585977992,0.17166846,214.36,213.94,0.07567386]
[1693585978198,0.17166846,214.35,213.94,0.07567386]
[1693585980093,0.17166846,214.35,213.95,0.85850564]
[1693585980297,0.17166846,214.34,213.99,0.07567386]
[1693585980491,0.17166846,214.33,213.99,0.07567386]
[1693585980696,0.17166846,214.32,213.99,0.07567386]
[1693585980891,7.10381507,214.43,214.0,0.07567386]
[1693585980892,0.17166846,214.4,214.0,0.07567386]
[1693585981098,0.17166846,214.39,214.0,0.07567386]
[1693585981299,0.17166846,214.38,214.0,0.07567386]
[1693585981595,0.17166846,214.37,214.0,0.07567386]
[1693585981799,0.17166846,214.36,214.0,0.07567386]
[1693585982000,0.17166846,214.41,214.0,0.07567386]
[1693585982196,0.17166846,214.4,214.0,0.07567386]
[1693585982400,0.17166846,214.41,214.0,0.07567386]
[1693585982597,0.17166846,214.4,213.98,0.07567386]
[1693585982803,0.17166846,214.39,213.99,0.85841125]
[1693585983003,0.17166846,214.43,213.99,0.85841125]
[1693585983305,0.17166846,214.42,213.99,0.85841125]
[1693585983506,0.17166846,214.43,213.99,0.85841125]
[1693585983801,0.17166846,214.42,213.99,0.85841125]
[1693585984006,0.17166846,214.43,213.98,0.85841125]
[1693585984199,0.17166846,214.42,213.99,0.85842355]
[1693585984401,0.17166846,214.41,213.97,0.07567386]
[1693585984598,0.17166846,214.43,213.98,0.85842687]
[1693585984907,0.17166846,214.42,213.98,0.85842687]
[1693585985103,0.17166846,214.41,213.95,0.07567386]
[1693585985401,0.17166846,214.4,213.96,0.85844331]
[1693585985605,0.17166846,214.39,213.96,0.85844331]
[1693585985801,0.17166846,214.38,213.96,0.85844331]
[1693585986004,0.17166846,214.37,213.96,0.85844331]
[1693585986204,5.07415362,214.44,213.96,0.85844331]
[1693585986205,0.17166846,214.36,213.96,0.85844331]
[1693585986407,0.17166846,214.35,213.96,0.85844331]
[1693585986601,0.17166846,214.34,213.96,0.85844331]
[1693585986907,0.17166846,214.33,213.96,0.85844331]
[1693585987109,0.17166846,214.32,213.96,0.85844331]
[1693585987305,0.17166846,214.31,213.96,0.85844331]
[1693585987502,0.17166846,214.3,213.96,0.85844331]
[1693585987704,5.07415362,214.45,213.96,0.85844331]
[1693585987904,0.17168917,214.44,213.96,0.85844331]
[1693585990106,0.17168917,214.43,213.97,0.85844331]
[1693585990302,0.17168917,214.45,213.95,0.85844331]
[1693585990506,0.17168917,214.44,213.96,0.85844331]
[1693585990701,0.17168917,214.45,213.95,0.85844331]
[1693585990902,0.17168917,214.44,213.96,0.85844331]
[1693585991103,0.17168917,214.43,213.97,0.85844331]
[1693585991310,0.17168917,214.45,213.95,0.85844331]
[1693585991607,0.17168917,214.44,213.96,0.85844331]
[1693585991808,0.17168917,214.43,213.97,0.85844331]
[1693585992010,0.17168917,214.45,213.95,0.85844331]
[1693585992309,0.17168917,214.44,213.96,0.85844331]
[1693585992508,0.17168917,214.43,213.97,0.85844331]
[1693585992709,0.17168917,214.45,213.95,0.93411717]
[1693585992910,0.17168917,214.44,213.96,0.85844331]
[1693585993109,0.17168917,214.46,213.96,0.85844331]
[1693585993306,0.17168917,214.45,213.96,0.85844331]
[1693585993506,0.17168917,214.44,213.96,0.85844331]
[1693585993703,0.17168917,214.46,213.96,0.85844331]
[1693585993908,0.17168917,214.45,213.96,0.85844331]
[1693585994207,0.17168917,214.44,213.96,0.85844331]
[1693585994407,0.17168917,214.43,213.96,0.85844331]
[1693585994613,0.17168917,214.47,213.96,0.85844331]
[1693585994807,0.17168917,214.46,213.96,0.85844331]
[1693585995011,0.17168917,214.47,213.96,0.85844331]
[1693585995212,0.17168917,214.46,213.96,0.85844331]
[1693585995411,0.17168917,214.45,213.96,0.85844331]
[1693585995607,0.17168917,214.44,213.96,0.85844331]
[1693585995806,0.17168917,214.43,213.96,0.85844331]
[1693585996011,0.17168917,214.42,213.96,0.85844331]
[1693585996312,0.17168917,214.41,213.96,0.85844331]
[1693585996509,0.17168917,214.4,213.96,0.93411717]
[1693585996710,0.17168917,214.47,213.97,0.85844331]
[1693585997012,0.17168917,214.46,213.97,0.85844331]
[1693585997212,0.17168917,214.47,213.97,0.85844331]
[1693585997413,0.17168917,214.46,213.97,0.85844331]
[1693585997712,0.17168917,214.45,213.98,0.85844331]
[1693585997915,7.10381507,214.51,213.95,0.07567386]
[1693585997916,0.17168917,214.44,213.95,0.07567386]
[1693585998214,0.17168917,214.44,213.92,0.07567386]
[1693585998415,0.17168917,214.44,213.96,0.07567386]
[1693585998609,0.17168917,214.45,213.96,0.07567386]
[1693585998810,0.17168917,214.45,213.96,0.93413386]
[1693585999109,0.17168917,214.47,213.97,0.07567386]
[1693585999316,0.17168917,214.46,213.98,0.85846]
[1693585999513,0.17168917,214.49,213.98,0.85846]
[1693585999708,0.17168917,214.48,213.98,0.85846]
[1693585999913,0.17168917,214.49,213.98,0.85846]
[1693586000113,0.17168917,214.48,213.98,0.85846]
[1693586000311,0.17168917,214.47,213.98,0.85846]
[1693586000514,5.24584279,214.49,213.98,0.85846]
[1693586000715,0.17168917,214.48,213.98,0.85846]
[1693586001212,0.17168917,214.47,213.98,0.85846]
[1693586001412,0.17168917,214.46,213.98,0.85846]
[1693586001612,0.17168917,214.45,213.98,0.93413386]
[1693586001813,0.17168917,214.44,213.99,0.85846]
[1693586002014,0.17168917,214.49,214.0,0.85846]
[1693586002210,0.17168917,214.48,214.01,0.85846]
[1693586002409,0.17168917,214.49,213.99,0.85846]
[1693586002618,0.17168917,214.48,214.0,0.8583985]
[1693586002818,0.17168917,214.49,213.99,0.8583985]
[1693586003012,0.17168917,214.47,214.01,0.8583985]
[1693586003315,0.17168917,214.48,214.05,0.07567386]
[1693586003712,0.17168917,214.46,214.06,0.07567386]
[1693586003916,0.17168917,214.46,214.07,0.07567386]
[1693586004418,0.17168917,214.46,214.08,0.07567386]
[1693586004619,0.17168917,214.47,214.13,0.07567386]
[1693586005119,0.17168917,214.47,214.1,0.07567386]
[1693586005512,0.17168917,214.47,214.11,0.07567386]
[1693586005918,0.17168917,214.47,214.1,0.07567386]
[1693586006120,0.17168917,214.47,214.11,0.07567386]
[1693586006313,0.17168917,214.47,214.12,0.07567386]
[1693586006915,0.17168917,214.47,214.1,0.07567386]
[1693586007912,0.17168917,214.47,214.09,0.07567386]
[1693586008117,0.17168917,214.47,214.08,0.07567386]
[1693586008317,0.17168917,214.47,214.09,0.07567386]
[1693586009119,0.17168917,214.47,214.08,0.07567386]
[1693586009720,0.17168917,214.47,214.07,0.07567386]
[1693586011922,0.17168917,214.47,214.06,0.07567386]
[1693586014525,5.07415362,214.86,214.07,0.85777922]
[1693586014725,0.17155491,214.85,214.07,0.85777922]
[1693586015225,0.17155491,214.85,214.08,0.85777922]
[1693586015527,0.17155491,214.85,214.09,0.85777922]
[1693586015825,0.17155491,214.85,214.1,0.85777922]
[1693586016026,0.17155491,214.84,214.11,0.85777922]
[1693586016227,0.17155491,214.83,214.12,0.85777922]
[1693586016426,0.17155491,214.82,214.07,0.85777922]
[1693586016627,0.17155491,214.81,214.08,0.85777922]
[1693586016829,0.17155491,214.87,214.09,0.85777922]
[1693586017030,0.17155491,214.86,214.1,0.85777922]
[1693586017223,0.17155491,214.88,214.11,0.85777922]
[1693586017427,0.17155491,214.87,214.12,0.85777922]
[1693586017629,0.17155491,214.88,214.13,0.85777922]
[1693586017822,0.17155491,214.87,214.14,0.85777922]
[1693586018029,0.17155491,214.86,214.15,0.85777922]
[1693586018324,0.17155491,214.85,214.16,0.85777922]
[1693586018530,0.17155491,214.84,214.17,0.85777922]
[1693586018723,0.17155491,214.89,214.07,0.85777922]
[1693586018926,0.17155491,214.88,214.06,0.07567386]
[1693586019127,0.17155491,214.89,214.07,0.85777922]
[1693586019328,0.17155491,214.88,214.07,0.85777922]
[1693586019529,0.17155491,214.87,214.07,0.85777922]
[1693586019725,0.17155491,214.89,214.07,0.85777922]
[1693586019930,0.17155491,214.88,214.07,0.85777922]
[1693586020130,0.17155491,214.87,214.08,0.85777922]
[1693586020431,5.07415362,214.9,214.09,0.85777922]
[1693586020432,0.17155491,214.86,214.09,0.85777922]
[1693586020730,0.17155491,214.85,214.1,0.85777922]
[1693586020932,0.17155491,214.84,214.05,0.85777922]
[1693586021127,0.17155491,214.83,214.06,0.85777922]
[1693586021432,0.17155491,214.82,214.07,0.85777922]
[1693586021626,0.17155491,214.86,214.08,0.85777922]
[1693586021831,0.17155491,214.85,214.09,0.85777922]
[1693586022027,5.07415362,214.84,214.01,0.93345308]
[1693586022230,0.17155491,214.83,214.02,4.57007498]
[1693586022427,0.17155491,214.83,214.02,0.85777922]
[1693586022631,0.17155491,214.83,214.01,0.07567386]
[1693586022932,0.17155491,214.83,214.02,0.85777922]
[1693586024935,0.17155491,214.83,214.02,0.93345308]
[1693586025135,5.24570853,214.83,214.03,0.85777922]
[1693586025437,0.17155491,214.82,214.03,0.07567386]
[1693586025637,0.17155491,214.83,214.03,0.07567386]
[1693586025834,0.17155491,214.82,214.04,0.85777922]
[1693586026137,0.17155491,214.81,214.04,0.85777922]
[1693586026332,0.17155491,214.8,214.04,0.85777922]
[1693586026538,0.17155491,214.79,214.04,0.85777922]
[1693586026731,0.17155491,214.82,214.04,0.85777922]
[1693586026935,0.17155491,214.81,214.04,0.85777922]
[1693586027238,0.17155491,214.8,214.04,0.85777922]
[1693586027437,0.17155491,214.79,214.04,0.85777922]
[1693586027632,0.17155491,214.78,214.04,0.85777922]
[1693586027834,0.17155491,214.82,214.04,0.85777922]
[1693586028136,5.24570853,214.81,214.04,0.85777922]
[1693586028337,0.17155491,214.8,214.04,0.85777922]
[1693586029339,5.24570853,214.8,214.04,0.85777922]
[1693586029637,0.17155491,214.79,214.04,0.85777922]
[1693586029838,0.17155491,214.79,214.04,0.93345308]
[1693586030038,0.17155491,214.79,214.05,0.85777922]
[1693586030438,5.07415362,214.78,214.05,0.93345308]
[1693586030739,0.17155491,214.77,214.06,0.85777922]
[1693586031839,0.17155491,214.77,214.06,0.93345308]
[1693586032033,0.17155491,214.77,214.07,0.85777922]
[1693586032237,5.07415362,214.76,214.07,0.85777922]
[1693586032436,0.17155491,214.75,214.07,0.85777922]
[1693586032732,0.17155491,214.75,214.08,0.07567386]
[1693586033039,0.17155491,214.75,214.09,0.85777922]
[1693586033643,5.24570853,214.75,214.09,0.85777922]
[1693586033842,0.17155491,214.74,214.09,0.85777922]
[1693586034040,0.17155491,214.74,214.1,0.07567386]
[1693586034236,0.17155491,214.74,214.11,0.85777922]
[1693586035042,5.07415362,214.73,214.1,0.93345308]
[1693586035244,0.17155491,214.72,214.11,0.85777922]
[1693586035844,5.07415362,214.71,214.12,0.07567386]
[1693586036042,0.17155491,214.7,214.13,0.85777922]
[1693586036744,0.17155491,214.7,214.13,0.93345308]
[1693586036940,5.07415362,214.68,214.15,0.07567386]
[1693586037147,0.17155491,214.67,214.15,0.07567386]
[1693586037446,0.17155491,214.67,214.16,0.07567386]
[1693586037645,0.17155491,214.68,214.21,0.07567386]
[1693586037845,0.17155491,214.67,214.22,0.07567386]
[1693586038147,0.17155491,214.66,214.22,0.07570428]
[1693586038339,0.17155491,214.74,214.22,0.07570428]
[1693586038539,0.17155491,214.73,214.22,0.07570428]
[1693586038743,0.17155491,214.72,214.22,0.07570428]
[1693586038945,0.17155491,214.71,214.23,0.07570428]
[1693586039141,0.17155491,214.75,214.23,0.07570428]
[1693586039345,0.17155491,214.74,214.23,0.07570428]
[1693586039546,0.17155491,214.75,214.23,0.07570428]
[1693586039747,0.17155491,214.74,214.22,0.07570428]
[1693586039946,0.17155491,214.73,214.22,0.07570428]
[1693586040147,0.17155491,214.72,214.22,0.07570428]
[1693586040347,0.17155491,214.75,214.22,0.07570428]
[1693586040548,0.17155491,214.74,214.22,0.07570428]
[1693586040945,0.17155491,214.73,214.22,0.07569795]
[1693586041144,5.08443779,214.76,214.22,0.07569795]
[1693586041345,0.17155491,214.75,214.22,0.07569795]
[1693586042051,0.17155491,214.75,214.23,0.07569795]
[1693586042252,0.17155491,214.75,214.22,0.07569795]
[1693586042451,0.17155491,214.75,214.23,0.07569795]
[1693586043046,0.17155491,214.75,214.22,0.07569795]
[1693586044653,0.17155491,214.74,214.22,0.07569795]
[1693586044951,0.17155491,214.73,214.22,0.07569795]
[1693586045153,0.17155491,214.72,214.22,0.07569795]
[1693586045353,0.17155491,214.71,214.22,0.07569795]
[1693586045554,5.08443779,214.77,214.22,0.07569795]
[1693586045555,0.17155491,214.76,214.22,0.07569795]
[1693586045749,0.17155491,214.75,214.22,0.07569795]
[1693586046054,0.17155491,214.74,214.22,0.07569795]
[1693586046249,0.17155491,214.73,214.22,0.07569795]
[1693586046454,0.17155491,214.76,214.22,0.07569795]
[1693586046652,0.17155491,214.75,214.22,0.07569795]
[1693586046852,0.17155491,214.76,214.22,0.07569795]
[1693586047049,0.17155491,214.75,214.22,0.07569795]
[1693586047253,0.17155491,214.74,214.22,0.07569795]
[1693586047549,0.17155491,214.73,214.21,0.07569795]
[1693586047753,0.17155491,214.76,214.21,0.07569795]
[1693586048053,0.17155491,214.75,214.21,0.07569795]
[1693586048250,0.17155491,214.74,214.21,0.07569795]
[1693586048454,0.17155491,214.76,214.21,0.07569795]
[1693586048754,0.17155491,214.75,214.21,0.07569795]
[1693586048955,0.17155491,214.74,214.21,0.07569795]
[1693586049152,0.17155491,214.73,214.21,0.07569795]
[1693586049354,0.17155491,214.76,214.21,0.07569795]
[1693586049654,0.17155491,214.75,214.22,0.9333463]
[1693586049855,0.17155491,214.74,214.22,0.07569795]
[1693586050054,0.17155491,214.73,214.21,0.07569795]
[1693586050256,0.17155491,214.72,214.21,0.07569795]
[1693586050455,0.17155491,214.77,214.21,0.07569795]
[1693586050651,0.17155491,214.76,214.21,0.07569795]
[1693586050853,0.17155491,214.77,214.21,0.07569795]
[1693586051053,0.17155491,214.76,214.21,0.07569795]
[1693586051255,0.17155491,214.75,214.21,0.07569795]
[1693586051458,0.17155491,214.74,214.21,0.07569795]
[1693586051756,0.17155491,214.73,214.21,0.07569795]
[1693586051959,0.17155491,214.77,214.2,0.07569795]
[1693586052155,0.17155491,214.76,214.21,0.85766159]
[1693586052357,0.17155491,214.75,214.21,0.85766159]
[1693586052652,0.17155491,214.74,214.15,0.07569795]
[1693586052857,0.17155491,214.77,214.14,0.07569795]
[1693586053059,0.17155491,214.76,214.15,0.85792551]
[1693586053264,0.17155491,214.75,214.15,0.93362346]
[1693586053460,0.17155491,214.74,214.14,0.07569795]
[1693586053660,0.17155491,214.74,214.15,0.85792441]
[1693586053960,5.08443779,214.71,214.13,0.07569795]
[1693586054160,0.17155491,214.7,214.14,0.85794851]
[1693586054963,0.17155491,214.7,214.12,0.07569795]
[1693586055261,5.08443779,214.69,214.13,0.85796976]
[1693586055462,0.17155491,214.68,214.13,0.85796976]
[1693586056964,0.17155491,214.68,214.12,0.85796976]
[1693586057162,0.17155491,214.68,214.13,0.85797244]
[1693586057357,0.17155491,214.68,214.11,0.07569795]
[1693586057562,0.17155491,214.68,214.12,0.85797794]
[1693586057762,5.2559927,214.68,214.1,0.07569795]
[1693586057962,0.17155491,214.67,214.11,0.85797844]
[1693586058562,0.17155491,214.67,214.12,0.85797844]
[1693586058760,0.17155491,214.67,214.09,0.07569795]
[1693586058960,0.17155491,214.67,214.1,0.85797966]
[1693586059167,5.08443779,214.66,214.11,0.85797966]
[1693586059466,0.17155491,214.65,214.12,0.85797966]
[1693586059661,0.17155491,214.65,214.09,0.85797966]
[1693586059866,0.17155491,214.65,214.1,0.85798205]
[1693586060063,0.17155491,214.65,214.11,0.85798205]
[1693586060265,0.17155491,214.65,214.08,0.07569795]
[1693586060266,0.17155491,214.65,214.12,0.85798205]
[1693586060560,0.17155491,214.65,214.08,0.07569795]
[1693586060765,0.17155491,214.65,214.09,0.85799622]
[1693586060965,0.17155491,214.65,214.08,0.85799622]
[1693586061169,0.17155491,214.65,214.09,0.85799622]
[1693586061467,0.17155491,214.65,214.1,0.85799622]
[1693586061666,0.17155491,214.65,214.11,0.85799622]
[1693586061866,5.08443779,214.63,214.07,0.85799622]
[1693586062166,0.17155491,214.62,214.08,0.85799648]
[1693586062365,0.17155491,214.62,214.06,0.85799648]
[1693586062561,0.17155491,214.62,214.07,0.85799648]
[1693586062760,0.17155491,214.62,214.06,0.85799648]
[1693586062965,0.17155491,214.62,214.07,0.85799648]
[1693586063164,0.17155491,214.62,214.08,0.85799648]
[1693586063361,0.17155491,214.62,214.06,0.85799648]
[1693586063565,0.17155491,214.62,214.07,0.85799648]
[1693586063765,0.17155491,214.62,214.06,0.85799648]
[1693586063963,0.17155491,214.62,214.07,0.85799648]
[1693586064169,0.17155491,214.62,214.06,0.85799648]
[1693586064369,0.17155491,214.62,214.07,0.85799648]
[1693586064571,0.17155491,214.62,214.08,0.85799648]
[1693586064761,0.17155491,214.62,214.06,0.85799648]
[1693586065969,0.17155491,214.62,214.05,0.85799648]
[1693586066162,0.17155491,214.62,214.06,0.85799648]
[1693586066367,0.17155491,214.62,214.05,0.85799648]
[1693586066564,0.17155491,214.62,214.06,0.85799648]
[1693586066763,0.17155491,214.62,214.05,0.85799648]
[1693586066967,0.17155491,214.62,214.06,0.85799648]
[1693586067168,0.17155491,214.62,214.04,0.85799648]
[1693586067368,0.17155491,214.62,214.05,0.85799648]
[1693586068981,0.17155491,214.62,214.06,0.85799648]
[1693586069283,0.17155491,214.62,214.07,0.85799648]
[1693586069474,0.17155491,214.62,214.08,0.85799648]
[1693586069678,0.17155491,214.62,214.09,0.85799648]
[1693586069875,0.17155491,214.62,214.04,0.85799648]
[1693586070077,0.17155491,214.62,214.05,0.85799648]
[1693586070278,0.17155491,214.62,214.04,0.85799648]
[1693586070581,0.17155491,214.62,214.05,0.85799648]
[1693586070773,0.17155491,214.62,214.04,0.85799648]
[1693586070974,0.17155491,214.62,214.05,0.85799648]
[1693586071178,0.17155491,214.62,214.06,0.85799648]
[1693586071381,0.17155491,214.62,214.07,0.85799648]
[1693586071580,0.17155491,214.62,214.08,0.85799648]
[1693586071781,0.17155491,214.62,214.04,0.85799648]
[1693586071981,0.17155491,214.62,214.05,0.85799648]
[1693586072181,0.17155491,214.62,214.04,0.85799648]
[1693586072378,0.17155491,214.62,214.05,0.85799648]
[1693586072579,0.17155491,214.62,214.04,0.85799648]
[1693586072881,0.17155491,214.62,214.05,0.85799648]
[1693586073077,0.17155491,214.62,214.06,0.85799648]
[1693586073381,0.17155491,214.62,214.07,0.85799648]
[1693586073581,0.17155491,214.62,214.08,0.85799648]
[1693586073782,0.17155491,214.62,214.03,0.85799648]
[1693586073978,0.17155491,214.62,214.04,0.85799648]
[1693586074375,0.17155491,214.63,214.04,0.85799648]
[1693586074575,0.17155491,214.62,214.04,0.85799648]
[1693586074778,0.17155491,214.63,214.04,0.85799648]
[1693586074975,0.17155491,214.62,214.04,0.85799648]
[1693586075177,0.17155491,214.63,214.04,0.85799648]
[1693586075375,0.17155491,214.62,214.04,0.85799648]
[1693586075578,0.17155491,214.63,214.04,0.85799648]
[1693586075778,0.17155491,214.62,214.04,0.85799648]
[1693586075980,0.17155491,214.63,214.04,0.85799648]
[1693586076177,0.17155491,214.62,214.04,0.85799648]
[1693586076376,0.17155491,214.63,214.04,0.85799648]
[1693586076583,0.17155491,214.62,214.04,0.85799648]
[1693586076879,0.17155491,214.61,214.04,0.85799648]
[1693586077083,0.17155491,214.6,214.04,0.85799648]
[1693586077284,0.17155491,214.59,214.04,0.93369443]
[1693586077484,0.17155491,214.58,214.05,0.85799648]
[1693586077685,0.17155491,214.57,214.05,0.85799648]
[1693586077985,0.17155491,214.56,214.05,0.85799648]
[1693586078182,0.17155491,214.55,214.05,0.85799648]
[1693586078383,0.17155491,214.54,214.05,0.85799648]
[1693586078582,0.17155491,214.53,214.05,0.85799648]
[1693586078785,0.17155491,214.52,214.05,0.85799648]
[1693586078979,0.17155491,214.62,214.05,0.85799648]
[1693586079182,0.17155491,214.61,214.05,0.85799648]
[1693586079383,0.17155491,214.62,214.05,0.85799648]
[1693586079582,0.17155491,214.61,214.05,0.85799648]
[1693586079784,0.17155491,214.62,214.05,0.85799648]
[1693586079985,0.17155491,214.61,214.05,0.85799648]
[1693586080186,0.17155491,214.6,214.05,0.85799648]
[1693586080386,0.17155491,214.59,214.05,0.85799648]
[1693586080586,0.17155491,214.58,214.05,0.93369443]
[1693586080783,0.17155491,214.57,214.06,0.85799648]
[1693586080981,0.17155491,214.56,214.06,0.85799648]
[1693586081189,0.17155491,214.55,214.06,0.85799648]
[1693586081382,0.17155491,214.62,214.06,0.85799648]
[1693586081581,0.17155491,214.61,214.06,0.85799648]
[1693586081783,5.2559927,214.62,214.06,0.93369443]
[1693586081980,0.17155491,214.61,214.07,0.85799648]
[1693586083484,0.17155491,214.62,214.07,0.93369443]
[1693586083685,0.17155491,214.62,214.08,0.93369443]
[1693586083881,0.17155491,214.62,214.09,0.85799648]
[1693586084686,5.08443779,214.61,214.09,0.93369443]
[1693586084882,0.17155491,214.6,214.1,0.85799648]
[1693586085785,0.17155491,214.6,214.1,0.93369443]
[1693586085983,5.08443779,214.59,214.11,0.85799648]
[1693586086181,0.17155491,214.58,214.11,0.85799648]
[1693586086986,0.17155491,214.58,214.1,0.07569795]
[1693586087384,0.17155491,214.58,214.09,0.07569795]
[1693586087587,0.17155491,214.58,213.87,1.00930612]
[1693586087588,0.17155491,214.58,214.12,0.07569795]
[1693586087788,7.28976782,214.58,214.12,0.07569795]
[1693586087988,0.17155491,214.57,214.12,0.07569795]
[1693586088290,5.08443779,214.56,214.12,0.07569795]
[1693586088493,0.17155491,214.55,214.12,0.07569795]
[1693586088691,5.2559927,214.55,214.12,0.07569795]
[1693586088885,0.17155491,214.54,214.12,0.07569795]
[1693586089788,0.17155491,214.54,214.13,0.07569795]
[1693586096197,5.2559927,214.54,214.13,0.07569795]
[1693586096393,0.17155491,214.53,214.13,0.07569795]
[1693586099100,0.17155491,214.53,214.14,0.07569795]
[1693586099294,0.17155491,214.52,214.14,0.07569795]
[1693586099490,0.17155491,214.51,214.14,0.07569795]
[1693586099697,0.17155491,214.5,214.14,0.07569795]
[1693586099896,0.17155491,214.54,214.14,0.07569795]
[1693586100096,0.17155491,214.53,214.14,0.07569795]
[1693586100294,0.17155491,214.54,214.14,0.07569795]
[1693586100601,0.17155491,214.53,214.14,0.07569795]
[1693586100793,0.17155491,214.52,214.14,0.07569795]
[1693586100997,0.17155491,214.51,214.14,0.07569795]
[1693586101198,0.17155491,214.5,214.14,0.07569795]
[1693586101397,0.17155491,214.53,214.14,0.07569795]
[1693586101693,0.17155491,214.52,214.14,0.07569795]
[1693586101893,0.17155491,214.51,214.13,0.07569795]
[1693586102093,0.17155491,214.5,214.09,0.07569795]
[1693586102299,0.17155491,214.49,214.06,0.07569795]